Cogmind - Beta 11 @@@ ROGUE MODE // 2022.03.22 @ 06:34:03 // Halloween2019/Abominations Player: Shin Result: Destroyed by Lesser Abomination with Beam Rifle Performance ------------- Evolutions (1) 500 Regions Visited (2) 400 Robots Destroyed (2) 10 Value Destroyed (13) 13 Prototype IDs (0) 0 Alien Tech Used (0) 0 Bonus (0) 0 TOTAL SCORE: 923 Bonus ------- None Cogmind --------- Core Integrity 0/400 Matter 275/300 Energy 99/100 System Corruption 3% Temperature Cool (9) Movement Core (100) Ox1 Location -9/Materials Parts ------- > --- POWER (1) -------- (None) > --- PROPULSION (2) --- (None) > --- UTILITY (4) ------ Small Storage Unit > --- WEAPON (2) ------- (None) > --- INVENTORY (8) ---- Light Treads Aluminum Leg Large Storage Unit Large Storage Unit Light Assault Rifle Peak State ------------ > --- POWER ------------ Ion Engine > --- PROPULSION ------- Aluminum Leg Aluminum Leg > --- UTILITY ---------- Small Storage Unit Improved Terrain Scanner > --- WEAPON ----------- Small Laser Assault Rifle > --- INVENTORY -------- Ion Engine Light Treads Light Treads Wheel Compact Wheel Compact Wheel Light Assault Rifle [Rating: 9] Favorites ----------- Power Ion Engine Engine Ion Engine Propulsion Compact Wheel Treads Light Treads Leg Aluminum Leg Wheel Compact Wheel Utility Small Storage Unit Device Improved Terrain Scanner Storage Small Storage Unit Weapon Assault Rifle Energy Gun Small Laser Ballistic Gun Assault Rifle Build | -11 -10 -9 ------- Run | Scr Mat Mat Slots Evolved 2 | . . 2 Power . | . . . Propulsion . | . . . Utility 2 | . . 2 Weapon . | . . . Parts Attached 7 | 1 1 5 Power 1 | . . 1 Engine 1 | . . 1 Core . | . . . Reactor . | . . . Propulsion 5 | . 1 4 Treads 1 | . . 1 Leg . | . . . Wheel 4 | . 1 3 Hover . | . . . Flight . | . . . Utility 1 | 1 . . Device 1 | 1 . . Storage . | . . . Processor . | . . . Hackware . | . . . Protection . | . . . Artifact . | . . . Weapon . | . . . Energy Gun . | . . . Energy Cannon . | . . . Ballistic Gun . | . . . Ballistic Cannon . | . . . Launcher . | . . . Special Weapon . | . . . Impact Weapon . | . . . Slashing Weapon . | . . . Piercing Weapon . | . . . Special Melee Weapon . | . . . Unidentified Prototypes . | . . . Parts Lost 8 | . . 8 Power 2 | . . 2 Propulsion 4 | . . 4 Utility 1 | . . 1 Weapon 1 | . . 1 Highest Loss Streak 5 | . . 5 To Critical Strikes . | . . . Average Slot Usage (%) 66 | . 97 49 Engine 10 | . 14 8 Treads 1 | . . 1 Leg 8 | . 23 . Wheel 11 | . 4 15 Device 9 | . 14 7 Storage 12 | . 14 11 Energy Gun 4 | . 11 . Ballistic Gun 8 | . 14 5 Naked Turns . | . . . Heaviest Build 14 | 14 14 13 Greatest Support 32 | 20 20 32 Greatest Overweight (x) 3 | . 1 3 Average Overweight (x) . | . . . Largest Inventory Capacity 8 | 8 8 8 Average Capacity 8 | 8 8 8 Most Carried 8 | 8 7 6 Average Carried 5 | 6 6 5 Final Capacity 8 | 8 8 8 Final Carried 7 | 7 6 5 Class Distribution -------------------- 100% | Mutant Dominant Class ---------------- Mutant | -10/Materials Mutant | -9/Materials Resources | -11 -10 -9 ----------- Run | Scr Mat Mat Matter Collected 225 | 215 10 . Remotely . | . . . Salvage Created 75 | 75 . . Parts 4 | 4 . . Haulers Intercepted . | . . . Recyclers Shooed . | . . . Parts Field Recycled . | . . . Retrieved Matter . | . . . Parts Self-Destructed . | . . . Prevented . | . . . Kills | -11 -10 -9 ------- Run | Scr Mat Mat Combat Hostiles Destroyed . | . . . Classes Destroyed 2 | 2 . . Tunneler 1 | 1 . . Recycler 1 | 1 . . Best Kill Streak 2 | 2 . . Combat Bots Only . | . . . Max Kills in Single Turn 1 | 1 . . Gunslinging . | . . . Exploded . | . . . Melee . | . . . Uniques/NPCs Destroyed . | . . . Combat | -11 -10 -9 -------- Run | Scr Mat Mat Damage Taken 1051 | . 33 1018 Core 420 | . 10 410 Absorbed by Shields . | . . . Core Remaining (%) 98 | 100 96 . Volleys Fired 5 | 5 . . Largest 2 | 2 . . Hottest 60 | 60 . . Shots Fired 10 | 10 . . Gun 10 | 10 . . Cannon . | . . . Launcher . | . . . Special . | . . . Kinetic 5 | 5 . . Thermal 5 | 5 . . Explosive . | . . . Electromagnetic . | . . . Robot Hit Streak 3 | 3 . . Robot Miss Streak 2 | 2 . . Penetration Max . | . . . Secondary Targets . | . . . Shots Hit Robots 6 | 6 . . Core Hits 2 | 2 . . Critical Kills . | . . . Critical Parts Destroyed . | . . . Critical Strikes . | . . . Melee Attacks . | . . . Impact . | . . . Slashing . | . . . Piercing . | . . . Sneak Attacks . | . . . Combat Hostiles . | . . . Follow-up Attacks . | . . . Damage Inflicted 73 | 73 . . Guns 73 | 73 . . Cannons . | . . . Explosions . | . . . Melee . | . . . Ramming . | . . . Kinetic 27 | 27 . . Thermal 46 | 46 . . Explosive . | . . . Electromagnetic . | . . . Impact . | . . . Slashing . | . . . Piercing . | . . . Highest Corruption 6 | . 6 3 Average Corruption 3 | . 5 2 Corruption Purged . | . . . Corruption Blocked . | . . . Effects 2 | . 2 . Matter Fused 1 | . 1 . Parts Rejected 1 | . 1 . Overload Shots . | . . . Overflow Damage . | . . . Projectiles . | . . . Explosions . | . . . Melee . | . . . Knockbacks . | . . . Impact . | . . . Kinetic . | . . . Secondary . | . . . Self-Inflicted Damage . | . . . Shots . | . . . Rammed . | . . . Targets Rammed . | . . . Kicked . | . . . Crushed . | . . . Highest Temperature 8 | . . 8 Average Temperature 6 | . . 6 Received Heat Transfer 522 | . 18 504 Siege Activations . | . . . Robots Corrupted . | . . . Combat Hostiles . | . . . Parts Fried . | . . . Impact Corruptions . | . . . Robots Melted . | . . . Combat Hostiles . | . . . Parts Melted . | . . . Heat Transferred 100 | 100 . . Parts Sabotaged . | . . . Parts Stolen . | . . . Parts Stripped . | . . . Power Chain Reactions . | . . . Missiles Intercepted . | . . . Alert | -11 -10 -9 ------- Run | Scr Mat Mat Peak Influence 36 | 10 36 14 Initial 14 | . 6 14 Average 8 | 5 10 7 Maximum Alert Level . | . . . Low Security (%) 100 | 100 100 100 Level 1 . | . . . Level 2 . | . . . Level 3 . | . . . Level 4 . | . . . Level 5 . | . . . High Security . | . . . Max Security . | . . . Squads Dispatched 6 | . 2 4 Investigation 1 | . . 1 Extermination . | . . . Reinforcement 5 | . 2 3 Assault . | . . . Garrison . | . . . Intercept . | . . . Searches Triggered . | . . . Construction Impeded . | . . . Haulers Reinforced . | . . . Active Scanning Responses . | . . . Cargo Convoy Interrupts . | . . . Stealth | -11 -10 -9 --------- Run | Scr Mat Mat Distress Signals 1 | . 1 . Communications Jammed . | . . . Distress Signals . | . . . Times Spotted 8 | . 3 5 Peak Tracking Total 4 | . 2 4 Tactical Retreats 1 | . . 1 Traps | -11 -10 -9 ------- Run | Scr Mat Mat Traps Triggered 1 | . 1 . Indirectly . | . . . Trap Hack Attempts . | . . . Triggered . | . . . Disarmed . | . . . Reprogrammed . | . . . Reused . | . . . Traps Extracted . | . . . Installed . | . . . Triggered . | . . . Machines | -11 -10 -9 ---------- Run | Scr Mat Mat Machines Disabled . | . . . Max in Single Turn . | . . . Machines Sabotaged . | . . . Garrisons Compromised . | . . . Overloaded Fab Kills . | . . . Hacking | -11 -10 -9 --------- Run | Scr Mat Mat Machines Accessed . | . . . Terminals . | . . . Fabricators . | . . . Repair Stations . | . . . Recycling Units . | . . . Scanalyzers . | . . . Garrison Access . | . . . Total Hacks . | . . . Successful . | . . . Failed . | . . . Catastrophic . | . . . Database Lockouts . | . . . Manual . | . . . Terminals . | . . . Fabricators . | . . . Repair Stations . | . . . Recycling Units . | . . . Scanalyzers . | . . . Garrison Access . | . . . Terminal Hacks . | . . . Fabricator Hacks . | . . . Repair Station Hacks . | . . . Recycling Unit Hacks . | . . . Scanalyzer . | . . . Garrison Access Hacks . | . . . Unauthorized Hacks . | . . . Terminals . | . . . Fabricators . | . . . Repair Stations . | . . . Recycling Units . | . . . Scanalyzers . | . . . Garrison Access . | . . . Data Cores Recovered . | . . . Used . | . . . Hacking Detections . | . . . Full Trace Events . | . . . Feedback Events . | . . . Feedback Blocked . | . . . Robot Schematics Acquired . | . . . Robots Built . | . . . Authchips . | . . . Time . | . . . Total Robot Build Rating . | . . . Part Schematics Acquired . | . . . Parts Built . | . . . Authchips . | . . . Time . | . . . Total Part Build Rating . | . . . Parts Repaired . | . . . Time . | . . . Parts Recycled . | . . . Recycled Matter . | . . . Retrieved Matter . | . . . Retrieved Components . | . . . Parts Scanalyzed . | . . . Part Schematics Acquired . | . . . Parts Damaged . | . . . Bothacking | -11 -10 -9 ------------ Run | Scr Mat Mat Used RIF Installer . | . . . Robots Hacked . | . . . Non-combat . | . . . Combat . | . . . Robot Hacks Applied . | . . . Relay Couplers Released . | . . . Fabnet Peak Effective % . | . . . Robots Rewired . | . . . Allies Hacked . | . . . Hacks Repelled . | . . . Allies | -11 -10 -9 -------- Run | Scr Mat Mat Total Allies . | . . . Largest Group . | . . . Highest-Rated Group . | . . . Highest-Rated Ally . | . . . Total Orders . | . . . Ally Attacks . | . . . Total Damage . | . . . Kills . | . . . Allies Corrupted . | . . . Allies Melted . | . . . Intel | -11 -10 -9 ------- Run | Scr Mat Mat Robot Analysis Total . | . . . Derelict Logs Recovered . | . . . Drone Launches . | . . . Drone Recoveries . | . . . Exploration | -11 -10 -9 ------------- Run | Scr Mat Mat Turns Passed 412 | 47 126 239 Spaces Moved 368 | 25 112 231 Core 35 | . . 35 Treads . | . . . Legs 96 | 25 71 . Wheels 237 | . 41 196 Hover . | . . . Flight . | . . . Fastest Speed 90 | 120 95 90 Average Speed 105 | 120 112 100 Slowest Speed 200 | 120 190 200 Overloaded Moves . | . . . Propulsion Burnouts . | . . . Robots Hopped . | . . . Cave-ins Triggered . | . . . Exploration Rate (%) 13 | 2 25 12 Regions Visited 2 Branch Regions . Pre-discovered Areas . | . . . Known Exits Taken . | . . . Unknown Exits Taken 2 | 1 1 . Scrap Searched . | . . . Spaces Dug . | . . . Terrain Destroyed . | . . . Melee . | . . . Projectile . | . . . AOE . | . . . Terrain Rammed . | . . . Walls Destroyed . | . . . Machines Disabled . | . . . Actions | -11 -10 -9 --------- Run | Scr Mat Mat Total 382 | 32 112 238 Wait . | . . . Move 366 | 24 111 231 Hop . | . . . Pick Up 4 | 2 . 2 Fast Attach . | . . . Attach 5 | 1 1 3 Detach . | . . . Swap 2 | . . 2 Drop . | . . . Fire 5 | 5 . . Melee . | . . . Ram . | . . . Kick . | . . . Crush . | . . . Escape Stasis . | . . . Rewire . | . . . Trap . | . . . Miscellaneous . | . . . Route ------- -11/Scrapyard -10/Materials -9/Materials History --------- Turn | Location | Event 1 | -11/Scrapyard | Discovered new exit (range 1) 48 | -11/Scrapyard | Entered Materials 161 | -10/Materials | Discovered new exit (range 15) 174 | -10/Materials | Entered another Materials area 174 | -9/Materials | Evolved 2 slots: Utility x2 322 | -9/Materials | Build established: Mutant 365 | -9/Materials | Lost 5 parts (1p2n1u1w) 377 | -9/Materials | Core integrity fell below 50% 408 | -9/Materials | Core integrity fell below 20% 411 | -9/Materials | Lost 3 parts (1p2n) 413 | -9/Materials | Destroyed by Lesser Abomination with Beam Rifle Last Messages --------------- Lesser Abomination sheds Unstable Anomaly. Critical hit (Burn: +37). Imp. Terrain Scanner destroyed. Acquired Lrg. Storage Unit. Lesser Abomination absorbs Med. Storage Unit. Lesser Abomination absorbs Sml. Storage Unit. Lesser Abomination spits out Sml. Storage Unit. Lesser Abomination absorbs Med. Storage Unit. Lgt. Treads destroyed. Com. Wheel destroyed. Ion Engine destroyed. Critical hit (Burn: +37). Processing Tank disabled. Lesser Abomination absorbs Wheel. 4 Matter blinks away. Lesser Abomination feeds off Hungry Anomaly, taking Flight Unit. Critical hit (Burn: +37). Lesser Abomination spits out Hover Unit. Lesser Abomination feeds off Hungry Anomaly, taking Imp. Hover Unit. Hungry Anomaly eats Hover Unit. Map ----- +----------------------------------------------------+ | ?????????????????????????????????????????????????? | | ?????????????????????????????????????????????????? | | ?????????????????????????????????????????????????? | | ?????????????????????????????????????????????????? | | ????????????????????????? ""?????????????????????? | | ??????????????????????? ""?????????????????????? | | ????????????????????"" " ????????????????????? | | ???????????????????? " ????????????????????? | | ???????????????????? " ????????????????????? | | ?????????????? ?????? = " ????????????????????? | | ????????????????####?# ;""???????????????????? | | ???????????? ??? ??; ;;"T ??????????????????? | | ???????????????""% ? #% ;;""???????????????????? | | ????####???????"" ##; ;; ????????????????????? | | ???## !#????????" ##; ;;#????????????????????? | | ???# #???????"" # # ; ####?????????????????? | | ???# #???????"" [##; ; ###???????????????? | | ???# ###????""" #?# ;;;;;;"###?????????????? | | ???# #??""""" #?# ; #?????????????? | | ???##!!! #??? n ;## ; #?????????????? | | ????#### ####"";;;;;;#; ; """% #?????????????? | | ???????# ; """ #?????????????? | | ???#???# ; "" #?????????????? | | ???????# ;A""" #?????????????? | | ???????###"#########+## ; ""A ! #?????????????? | | ???????? ??????? # @; A #?????????????? | | ?????? T ??????? # # #?????????????? | | ?????# ?? ?? # #"";;;+###?????????????? | | ?????# ?????? # ########????#??????????? | | ?????# #???? # ###????????????????????? | | ?????# #???####### #######????????????????? | | ?????########??? # # #??????????"?????? | | ???????????#??? # % % #??#?????????????? | | ????????????#???""" # # #????? ??????????? | | ??????????#?? ?""""" # #######????????????????? | | ???????#??#????""""" # #??#?#??#??????????????? | | ????????????? """"" # #??????????????????????? | | ???????????## """ #n ##########?????#???????? | | ??########### + # #?????????????? | | ??# ########### # """"" #???#?????????? | | ??# # #####n # """"" #?????? ??????? | | ??# """ # # """"" #?#???????????? | | ??# """ + + """"" #?????????????? | | ??# """ "" # # """"" #?????????????? | | ??? """ S"" # ##### # """"" #??#???????#??? | | ????""" "" #######???# # """"" #?????????????? | | ????? #?????????##### #?????"???????? | | ?????########???????#????############??"???????"?? | | ??????????????????????????#?#?#??#???#???????????? | | ???????????????????#?#????#????#?????????????????? | +----------------------------------------------------+ Best States ------------- Heat Dissipation 28 Energy Generation 10 Energy Capacity 250 Matter Stores 300 Matter Capacity 300 Sight Range 16 Terrain Scan Range 16 Terrain Scan Density 10 Evasion (%) 55 Item Schematics ----------------- None Robot Schematics ------------------ None Fabricated ------------ Nothing Alien Tech Used ----------------- None Achievements -------------- None Challenges ------------ None Game ------ Seed AblativeTiamatNetwork Manual? 0 Play Time 00:06:52 Cumulative 74.5 hours Start 2022.03.22 @ 06:27:39 End 2022.03.22 @ 06:34:03 Sessions 1 Manual Loads 0 Difficulty Rogue Special Mode Halloween2019/Abominations Game No. 54 Rogue 54 Adventurer 0 Explorer 0 Win Type - Total 0 Types 0/0/0/0/0/0/0/0/0 Lore% 44 Gallery% 54 Achievement% 39 Wizard Run 0 Options --------- ASCII 0 Keyboard 0 Movement Arrows Keybinds 1 Fullscreen 1 Font 18/TerminusBold Map View 76x50 Tactical HUD 0 Map Filters NONE Filters NONE Steam 1 RUN: 1270f896-6afe-4f5e-8b1b-45d4a7e616fe